bitfinex/quotes_ETHUSD_20250314
["timestamp","ask_amount","ask_price","bid_price","bid_amount"]
[1741948662573,6.02,1903.6,1903.3,6.00671]
[1741948663177,6.02,1903.6,1903.3,0.7528]
[1741948663378,6.02,1903.6,1903.4,0.10320332]
[1741948663678,12.51464384,1903.7,1903.3,0.7528]
[1741948663858,14.94837522,1903.7,1903.5,0.10305396]
[1741948664056,14.94837522,1903.7,1903.4,0.10320332]
[1741948664257,14.94837522,1903.7,1903.6,0.10290461]
[1741948664459,14.94837522,1903.7,1903.5,0.10305396]
[1741948664778,14.94837522,1903.7,1903.6,0.10290461]
[1741948664949,20.20152522,1903.7,1903.3,0.7528]
[1741948665149,5.25323,1903.6,1903.4,0.10320332]
[1741948665395,5.25323,1903.6,1903.3,0.7528]
[1741948665600,5.25323,1903.6,1903.4,0.10320332]
[1741948665882,5.25323,1903.6,1903.3,0.7528]
[1741948666045,8.25323,1903.6,1903.5,0.10305396]
[1741948666249,8.25323,1903.6,1903.4,0.10320332]
[1741948666448,8.25323,1903.6,1903.5,0.10305396]
[1741948666877,8.25323,1903.6,1903.2,6.0069]
[1741948667071,8.25323,1903.6,1903.5,0.10305396]
[1741948667266,8.25323,1903.6,1903.2,6.0069]
[1741948667584,8.25323,1903.6,1903.2,12.387235]
[1741948667756,14.76769384,1903.7,1903.3,5.3572827]
[1741948668262,5.2532,1903.6,1903.3,5.3572827]
[1741948668566,5.2532,1903.6,1903.3,0.1033527]
[1741948668952,5.2532,1903.6,1903.3,5.3572827]
[1741948669181,5.2532,1903.6,1903.3,6.25733354]
[1741948669886,9.51460384,1903.7,1903.3,6.25732354]
[1741948670091,14.76769384,1903.7,1903.3,6.25732354]
[1741948670583,9.51460384,1903.7,1903.3,6.25728354]
[1741948670751,14.76771384,1903.7,1903.3,6.25728354]
[1741948670953,14.76771384,1903.7,1903.4,5.25369]
[1741948670954,9.51460384,1903.7,1903.4,5.25369]
[1741948671156,9.51460384,1903.7,1903.5,0.10305396]
[1741948671354,4.26167384,1903.7,1903.5,0.10305396]
[1741948671780,9.51470384,1903.7,1903.5,0.10305396]
[1741948671989,14.76781384,1903.7,1903.3,6.15404084]
[1741948672196,14.76781384,1903.7,1903.4,0.10320332]
[1741948672368,5.25321,1903.6,1903.3,6.15404084]
[1741948672681,5.25321,1903.6,1903.4,0.10320332]
[1741948673075,5.25321,1903.6,1903.3,6.15404084]
[1741948673266,5.25321,1903.6,1903.5,0.10305396]
[1741948673466,5.25321,1903.6,1903.4,0.10320332]
[1741948673689,5.25321,1903.6,1903.5,0.10305396]
[1741948674078,5.25371,1903.5,1903.2,1.78264398]
[1741948674279,5.25371,1903.5,1903.2,0.7528]
[1741948674466,5.2539,1903.4,1903.2,0.7528]
[1741948674874,5.05167384,1903.3,1902.8,5.25538]
[1741948675187,5.05167384,1903.3,1902.6,1.18642538]
[1741948675188,5.25472,1903.1,1902.7,5.30807275]
[1741948675377,5.2543,1903.2,1902.9,6.00642]
[1741948675686,5.2543,1903.2,1903.0,0.05254309]
[1741948676056,4.26167384,1903.3,1902.9,0.7514]
[1741948676057,5.25469,1903.1,1902.9,0.7514]
[1741948677894,5.25469,1903.1,1902.9,1.35732645]
[1741948678376,5.25469,1903.1,1903.0,0.09969086]
[1741948679088,5.25435,1903.2,1903.0,0.09969086]
[1741948679300,5.25419,1903.3,1903.0,0.09969086]
[1741948680089,10.12147384,1903.5,1903.0,0.15223082]
[1741948680290,5.25379,1903.4,1903.1,6.0136]
[1741948680667,5.25379,1903.4,1903.0,6.03086959]
[1741948680668,5.25325,1903.6,1903.4,0.8107]
[1741948680867,10.50667,1903.6,1903.4,0.8107]
[1741948681071,5.25348,1903.5,1903.4,0.8107]
[1741948681295,5.25325,1903.6,1903.4,0.8107]
[1741948682185,10.50661,1903.6,1903.4,0.8107]
[1741948682363,10.50661,1903.6,1903.3,0.8218]
[1741948682364,5.25325,1903.6,1903.3,0.8218]
[1741948682564,5.25325,1903.6,1903.3,6.683323]
[1741948684103,9.51463384,1903.7,1903.3,6.683233]
[1741948684273,10.50604,1903.7,1903.3,11.937113]
[1741948684590,10.50604,1903.7,1903.3,6.683233]
[1741948684959,5.25296,1903.7,1903.3,6.683183]
[1741948685160,10.33745384,1903.9,1903.5,0.7957]
[1741948685365,5.25271,1903.8,1903.5,0.7957]
[1741948685692,5.25293,1903.7,1903.5,0.7957]
[1741948690020,5.2532,1903.6,1903.5,0.7957]
[1741948690171,5.25293,1903.7,1903.5,0.7957]
[1741948690796,5.25293,1903.7,1903.5,2.43285227]
[1741948691010,5.25293,1903.7,1903.5,1.40588789]
[1741948691218,5.25293,1903.7,1903.5,0.7957]
[1741948693375,5.25293,1903.7,1903.6,0.09844355]
[1741948702226,5.25241,1903.9,1903.6,5.35159355]
[1741948702383,9.50370005,1903.9,1903.6,0.09844355]
[1741948702708,5.25273,1903.8,1903.6,0.09844355]
[1741948703914,9.50306572,1903.9,1903.6,0.09844355]
[1741948704288,9.50306572,1903.9,1903.6,0.15096975]
[1741948704616,9.50306572,1903.9,1903.6,6.65534005]
[1741948705186,9.50306572,1903.9,1903.6,6.65535005]
[1741948705410,4.25065572,1904.1,1903.8,5.2524]
[1741948705612,14.75457572,1904.1,1903.9,0.09790518]
[1741948705825,9.50258572,1904.1,1903.7,0.8001]
[1741948705983,4.25065572,1903.9,1903.8,0.09805448]
[1741948706189,4.25065572,1903.9,1903.6,5.25318]
[1741948706398,9.50250572,1904.1,1903.7,5.40363677]
[1741948706603,4.25065572,1904.1,1903.8,6.03195]
[1741948706803,4.25065572,1904.1,1903.9,0.15042334]
[1741948707001,3.0,1904.2,1903.9,6.02099567]
[1741948707213,9.50192572,1904.3,1903.9,6.02092567]
[1741948707397,14.75340572,1904.3,1904.0,0.8266]
[1741948707599,9.50192572,1904.3,1904.1,0.09753501]
[1741948707922,5.25155,1904.2,1904.1,0.09753501]
[1741948708224,14.75335572,1904.3,1904.1,0.09753501]
[1741948709123,14.75339572,1904.3,1904.1,0.09753501]
[1741948709418,26.87846572,1904.5,1904.2,5.25135]
[1741948709618,26.87846572,1904.5,1904.3,0.09713237]
[1741948709819,9.50146572,1904.5,1904.3,0.09713237]
[1741948710394,5.25099,1904.4,1904.3,0.09713237]
[1741948711126,4.25065572,1904.5,1904.3,0.09713237]
[1741948711299,9.50151572,1904.5,1904.3,0.09713237]
[1741948711698,5.25099,1904.4,1904.3,0.09713237]
[1741948712115,5.25099,1904.4,1904.0,11.33044]
[1741948712321,5.25099,1904.4,1904.3,0.09702823]
[1741948712508,5.25099,1904.4,1904.1,1.133044]
[1741948712711,5.25099,1904.4,1904.3,0.09702823]
[1741948712894,5.25099,1904.4,1904.2,0.09717746]
[1741948713098,5.25099,1904.4,1904.3,0.09702823]
[1741948713400,5.25099,1904.4,1904.1,6.384754]
[1741948713598,5.25099,1904.4,1904.2,0.73565286]
[1741948713798,10.50216,1904.4,1904.2,0.73565286]
[1741948713998,10.50216,1904.4,1904.2,0.09717746]
[1741948714228,10.50216,1904.4,1904.1,1.133044]
[1741948714424,5.2518,1904.2,1903.9,1.38432233]
[1741948714603,14.75460572,1904.1,1903.9,1.38432233]
[1741948714794,9.50260572,1904.1,1903.9,0.7661]
[1741948715598,5.25155,1904.2,1903.9,6.07083679]
[1741948715818,4.25065572,1904.3,1904.0,0.7509]
[1741948716007,9.50193572,1904.3,1904.0,6.00299]
[1741948716215,14.75341572,1904.3,1904.0,0.7509]
[1741948717503,9.50193572,1904.3,1904.0,0.7509]
[1741948717703,9.50193572,1904.3,1904.1,0.05251144]
[1741948718041,9.50193572,1904.3,1904.1,0.65806058]
[1741948718335,14.75337572,1904.3,1904.1,0.60554914]
[1741948718505,9.50193572,1904.3,1904.0,0.7509]
[1741948718703,9.50193572,1904.3,1904.1,0.05251146]
[1741948719940,14.75342572,1904.3,1904.1,0.05251146]
[1741948720133,5.25155,1904.2,1904.0,0.7509]
[1741948721035,14.75338572,1904.3,1904.0,0.7509]
[1741948723508,5.2522,1904.0,1903.9,0.09739091]
[1741948723922,5.25245,1903.9,1903.6,6.0537]
[1741948724437,10.50501,1903.9,1903.6,0.8005]
[1741948724643,9.50310572,1903.9,1903.6,6.05368]
[1741948724831,9.50310572,1903.9,1903.7,0.605368]
[1741948725842,9.50310572,1903.9,1903.7,0.65789004]
[1741948726144,9.50310572,1903.9,1903.7,0.605368]
[1741948726930,5.25245,1903.9,1903.7,0.65789006]
[1741948727138,10.50434,1904.0,1903.7,0.65789006]
[1741948727529,5.25213,1904.0,1903.7,0.65789006]
[1741948727728,10.50438,1904.0,1903.7,0.65789006]
[1741948727934,10.50439,1904.0,1903.7,5.91077006]
[1741948728243,5.25213,1904.0,1903.8,0.59107701]
[1741948728835,5.25213,1904.0,1903.9,0.772]
[1741948729673,4.25065572,1904.1,1903.9,0.772]
[1741948730467,9.50249572,1904.1,1903.9,0.772]
[1741948730657,9.50249572,1904.1,1903.9,1.43881559]
[1741948731283,5.2521,1904.0,1903.9,0.66681559]
[1741948731459,5.2521,1904.0,1903.7,0.605368]
[1741948731460,5.2521,1904.0,1903.7,1.421568]
[1741948731789,5.25265,1903.8,1903.7,0.605368]
[1741948731935,5.25298,1903.7,1903.5,0.8162]
[1741948732235,4.25065572,1903.9,1903.7,5.25285]
[1741948732434,4.25065572,1903.9,1903.7,5.30537238]
[1741948732659,5.25225,1904.0,1903.7,5.25285]
[1741948732860,9.50307572,1903.9,1903.6,5.25316]
[1741948733071,9.50305572,1903.9,1903.6,1.132279]
[1741948733276,9.50305572,1903.9,1903.6,6.385349]
[1741948733475,5.25213,1904.0,1903.7,5.30538413]
[1741948733777,5.2521,1904.0,1903.8,0.7924]
[1741948733968,11.27187,1904.1,1903.8,6.0449]
[1741948734166,5.25187,1904.1,1903.9,0.60449]
[1741948734539,10.50386,1904.1,1903.9,0.60449]
[1741948734739,10.50386,1904.1,1903.8,0.7924]
[1741948734933,5.2521,1904.0,1903.8,0.7924]
[1741948735244,9.50275572,1904.0,1903.8,0.7924]
[1741948735950,9.50275572,1904.0,1903.7,5.25286]
[1741948736163,9.50338572,1903.8,1903.6,1.132279]
[1741948736561,9.50338572,1903.8,1903.5,0.7785]
[1741948737093,5.25293,1903.7,1903.4,6.05962]
[1741948737294,9.50338572,1903.8,1903.4,11.31321]
[1741948737791,5.25295,1903.7,1903.4,6.05959]
[1741948738443,9.50338572,1903.8,1903.5,0.09174109]
[1741948738673,9.50338572,1903.8,1903.5,1.2322332]
[1741948739789,9.50338572,1903.8,1903.5,6.4856932]
[1741948740891,5.25301,1903.7,1903.5,1.2322332]
[1741948741051,5.25301,1903.7,1903.5,0.09174109]
[1741948741465,9.50332572,1903.8,1903.5,5.34515109]
[1741948741668,9.50332572,1903.8,1903.5,5.39767779]
[1741948741853,4.25065572,1903.8,1903.6,5.25295]
[1741948742177,9.50331572,1903.8,1903.7,0.09147488]
[1741948742381,9.50330572,1903.8,1903.7,0.09147488]
[1741948743150,9.50330572,1903.8,1903.5,5.3059167]
[1741948743358,9.50330572,1903.8,1903.7,0.09147488]
[1741948743665,5.25292,1903.7,1903.4,11.31322]
[1741948743865,5.25292,1903.7,1903.4,6.05961]
[1741948744691,5.25292,1903.7,1903.4,6.05973]
[1741948745085,5.25292,1903.7,1903.4,5.25373]
[1741948745277,14.75612572,1903.8,1903.5,0.525373]
[1741948746294,5.25299,1903.7,1903.5,0.525373]
[1741948747701,9.50330572,1903.8,1903.5,0.525373]
[1741948748500,5.25294,1903.7,1903.2,6.0755]
[1741948748698,9.50386572,1903.6,1903.2,11.32965]
[1741948748982,14.75727572,1903.6,1903.2,6.0755]
[1741948749206,9.50334572,1903.8,1903.4,5.25369]
[1741948749384,9.50334572,1903.8,1903.5,0.8267]
[1741948750256,4.25065572,1903.8,1903.5,6.08006]
[1741948750459,15.52290572,1904.0,1903.6,5.25307]
[1741948750701,9.50343572,1903.8,1903.5,1.960079]
[1741948751168,5.25241,1903.9,1903.6,5.30572688]
[1741948751582,5.25241,1903.9,1903.6,5.2532]
[1741948751786,5.25241,1903.9,1903.5,7.213549]
[1741948752085,5.25241,1903.9,1903.6,0.7213549]
[1741948753523,5.25241,1903.9,1903.7,0.08866311]
[1741948753810,4.25065572,1904.0,1903.7,5.34147311]
[1741948754512,4.25065572,1904.0,1903.7,0.14118642]
[1741948754700,9.50287572,1904.0,1903.7,0.14118642]
[1741948754871,9.50287572,1904.0,1903.7,0.75275755]
[1741948755075,9.50287572,1904.0,1903.7,0.70023424]
[1741948756319,4.25065572,1904.0,1903.7,0.75275757]
[1741948756472,0.7687,1904.3,1904.0,5.25186]
[1741948756813,4.25065572,1904.4,1904.1,0.08788418]
[1741948757187,4.25065572,1904.4,1904.1,5.33960418]
[1741948758087,4.25065572,1904.4,1904.1,10.59126418]
[1741948758290,4.25065572,1904.4,1904.2,5.25152]
[1741948758808,7.25065572,1904.4,1904.3,0.08749481]
[1741948759422,4.25065572,1904.6,1904.4,5.25086]
[1741948759904,7.25065572,1904.6,1904.5,0.08704711]
[1741948762558,0.01,1904.9,1904.8,6.05159]
[1741948762723,0.01,1904.9,1904.8,12.29722774]
[1741948762934,0.01,1904.9,1904.8,12.33112648]
[1741948763528,1e-05,1904.9,1904.8,12.33112648]
[1741948763737,6.02,1905.9,1905.6,0.7626]
[1741948763919,4.25065572,1906.0,1905.4,6.01066]
[1741948764094,6.02,1906.3,1905.5,0.05246935]
[1741948764434,6.02,1906.3,1905.9,5.24684]
[1741948764435,4.25065572,1906.2,1905.9,5.24684]
[1741948764587,4.25065572,1906.2,1905.9,5.29930136]
[1741948764786,9.01095,1906.4,1905.9,5.29930136]
[1741948764787,5.01605572,1906.4,1906.0,5.33098466]
[1741948764993,6.04218429,1906.4,1906.0,5.33098466]
[1741948765294,5.24554,1906.4,1906.1,0.7594]
[1741948765510,5.24554,1906.4,1906.2,0.08413676]
[1741948765716,5.24576,1906.3,1906.2,0.08413676]
[1741948765982,5.24576,1906.3,1905.9,0.05246331]
[1741948765983,5.24615,1906.2,1905.9,0.05246331]
[1741948766187,9.49680572,1906.2,1905.9,0.05246331]
[1741948766418,5.24633,1906.1,1905.9,0.05246334]
[1741948766619,5.24633,1906.1,1905.8,5.8951]
[1741948766852,5.24633,1906.1,1905.9,0.05246335]
[1741948767043,14.74309572,1906.2,1905.9,0.05246335]
[1741948767248,16.21740529,1906.2,1905.9,0.05246335]
[1741948767448,16.21736529,1906.2,1905.8,5.8951]
[1741948767763,5.24634,1906.1,1905.9,0.05246338]
[1741948767918,5.24634,1906.1,1905.8,5.8951]
[1741948768320,5.24634,1906.1,1905.9,0.08406502]
[1741948768568,10.49286,1906.1,1905.9,0.08406502]
[1741948768732,5.24634,1906.1,1905.9,0.08406502]
[1741948769728,5.24658,1906.0,1905.9,0.08406502]
[1741948770565,5.24634,1906.1,1905.9,0.08406502]
[1741948770738,10.49284,1906.1,1905.9,0.08406502]
[1741948770941,5.24634,1906.1,1905.9,0.08406502]
[1741948771655,10.49288,1906.1,1905.9,0.08406502]
[1741948771868,5.24634,1906.1,1905.9,0.08406502]
[1741948772768,5.24658,1906.0,1905.9,0.08406502]
[1741948772928,14.37752772,1906.0,1905.9,0.08406502]
[1741948773129,5.24725,1905.8,1905.5,0.7688]
[1741948773624,3.0,1906.0,1905.6,5.30002057]
[1741948773835,8.24661,1906.0,1905.7,5.24728]
[1741948774040,5.2469,1905.9,1905.6,5.24755]
[1741948774240,10.49397,1905.9,1905.7,0.524755]
[1741948774571,5.2469,1905.9,1905.5,11.26447]
[1741948774885,5.24653,1906.1,1905.7,5.24738]
[1741948775035,5.24653,1906.1,1905.8,5.29958395]
[1741948775242,15.51671572,1906.2,1905.8,5.29958395]
[1741948775488,9.49671572,1906.2,1905.8,5.29958395]
[1741948775656,5.24606,1906.2,1905.9,1.29745839]
[1741948775988,14.74300572,1906.2,1905.9,1.29745839]
[1741948776291,14.74300572,1906.2,1905.9,0.7675]
[1741948776585,5.24644,1906.1,1905.8,0.05246166]
[1741948776752,5.24684,1906.0,1905.7,0.8201]
[1741948777087,5.24684,1906.0,1905.7,6.06748]
[1741948777243,5.24661,1906.0,1905.8,0.65921292]
[1741948777646,5.24623,1906.2,1905.8,5.90634292]
[1741948777990,10.49246,1906.2,1905.8,5.853878]
[1741948778189,5.24633,1906.1,1905.9,0.05246176]
[1741948778495,5.2458,1906.3,1905.9,0.64309574]
[1741948778673,5.2458,1906.3,1906.0,5.24652]
[1741948778882,16.33218572,1906.4,1906.0,5.24641]
[1741948779067,16.33218572,1906.4,1906.1,0.05245626]
[1741948779273,5.24502,1906.6,1906.2,0.824]
[1741948779489,5.24495,1906.6,1906.3,5.24576]
[1741948779785,5.24495,1906.6,1906.3,0.606976]
[1741948780288,9.49538572,1906.7,1906.4,0.05244943]
[1741948780469,9.49538572,1906.7,1906.4,5.29785943]
[1741948780666,5.24466,1906.7,1906.5,0.824]
[1741948781467,10.4892,1906.8,1906.5,0.824]
[1741948781669,5.2446,1906.8,1906.5,1.43617394]
[1741948781964,9.49478572,1906.9,1906.5,6.68136394]
[1741948782184,5.2444,1906.8,1906.5,6.68136394]
[1741948782489,14.73907572,1906.9,1906.5,11.97872845]
[1741948782695,9.49478572,1906.9,1906.5,11.92623394]
[1741948782895,4.25065572,1907.1,1906.8,5.24416]
[1741948783099,9.49430572,1907.1,1906.8,5.24416]
[1741948783271,4.25065572,1907.1,1906.9,0.06717063]
[1741948783477,9.49432572,1907.1,1906.9,0.06717063]
[1741948783792,5.24413,1906.9,1906.7,0.05243866]
[1741948783991,9.49517572,1906.8,1906.5,0.824]
[1741948784198,9.49517572,1906.8,1906.5,1.430945]
[1741948784400,5.24467,1906.7,1906.5,1.430945]
[1741948784896,4.25065572,1906.8,1906.5,6.72843013]
[1741948785129,12.49450572,1907.0,1906.6,5.2448]
[1741948785290,4.25065572,1907.3,1906.9,0.8311]
[1741948785474,5.2428,1907.4,1907.1,5.24341]
[1741948785680,9.49376572,1907.3,1907.1,1.05396715]
[1741948785887,10.27065572,1907.5,1907.0,0.05242959]
[1741948786100,6.02,1907.5,1907.3,0.8121]
[1741948786281,4.25065572,1907.5,1907.3,0.8121]
[1741948786477,4.25065572,1907.5,1907.3,6.05501]
[1741948786684,5.24233,1907.6,1907.3,0.8121]
[1741948786891,5.24248,1907.5,1907.3,0.8121]
[1741948787093,5.24248,1907.5,1907.1,6.02832]
[1741948787094,9.49315572,1907.5,1907.1,6.02832]
[1741948787293,8.2423,1907.6,1907.3,5.24277]
[1741948787499,5.24265,1907.5,1907.1,11.27183]
[1741948787688,5.24168,1907.8,1907.4,5.24263]
[1741948787689,5.24174,1907.8,1907.4,5.24263]
[1741948788013,5.24117,1908.0,1907.6,5.24218]
[1741948788306,5.24094,1908.1,1907.7,6.0445]
[1741948788604,4.25065572,1908.3,1907.4,5.068]
[1741948788605,9.49211572,1907.9,1907.5,6.05363]
[1741948788903,4.25065572,1908.1,1907.8,5.24137]
[1741948789108,9.49158572,1908.1,1907.7,5.24186]
[1741948789306,4.25065572,1908.1,1907.5,0.8113]
[1741948789481,9.49103572,1908.3,1907.7,5.24177]
[1741948789802,11.02525572,1908.4,1908.0,5.24086]
[1741948789978,8.23976,1908.5,1908.2,5.24052]
[1741948789979,9.49038572,1908.5,1908.2,5.24052]
[1741948790180,4.25065572,1908.5,1908.3,0.05239872]
[1741948790381,4.25065572,1908.5,1908.3,5.29255768]
[1741948790582,4.25065572,1908.5,1908.1,5.24064]
[1741948790902,4.25065572,1908.5,1907.9,0.7744]
[1741948790903,9.48992572,1908.7,1908.3,5.24022]
[1741948791090,9.49039572,1908.5,1908.2,0.524064]
[1741948791407,4.25065572,1908.5,1908.3,5.29262641]
[1741948791609,4.25065572,1908.5,1908.4,5.23999]
[1741948791782,4.25065572,1908.6,1908.1,5.24073]
[1741948791982,4.25065572,1908.6,1908.2,10.53304828]
[1741948792201,4.25065572,1908.6,1908.3,5.24012]
[1741948792380,4.25065572,1908.6,1908.3,1.048063]
[1741948792580,9.49069572,1908.4,1908.0,5.24107]
[1741948792802,4.25065572,1908.2,1907.9,17.19972]
[1741948792990,4.25065572,1908.2,1907.9,11.10972]
[1741948793611,5.2415,1907.9,1907.5,6.04836]
[1741948793787,9.49247572,1907.8,1907.5,0.806]
[1741948793987,4.25065572,1907.6,1907.2,11.16718]
[1741948794194,4.25065572,1907.4,1907.3,1.116718]
[1741948794516,9.49284572,1907.6,1907.3,1.116718]
[1741948794675,5.24259,1907.5,1907.3,1.116718]
[1741948794880,14.73518572,1907.6,1907.2,6.06608]
[1741948795080,9.49284572,1907.6,1907.2,6.06608]
[1741948795281,4.25065572,1907.6,1907.3,5.29529234]
[1741948795611,4.25065572,1907.6,1907.4,5.24271]
[1741948795917,4.25065572,1907.6,1907.2,0.8229]
[1741948796085,9.49285572,1907.6,1907.2,6.06603]
[1741948796285,9.49285572,1907.6,1907.3,0.606603]
[1741948796286,5.2425,1907.5,1907.3,0.606603]
[1741948796503,15.9900458,1907.7,1907.3,5.90196712]
[1741948796681,5.24224,1907.6,1907.3,0.606603]
[1741948797174,5.5059958,1907.7,1907.3,5.90178723]
[1741948797379,9.9323458,1907.7,1907.3,0.606603]
[1741948797675,5.24166,1907.8,1907.3,0.606603]
[1741948797676,8.4553958,1907.9,1907.3,5.9019754]
[1741948797879,9.9317758,1907.9,1907.6,5.24209]
[1741948798110,10.48356,1907.8,1907.4,5.83281754]
[1741948798298,5.24172,1907.8,1907.5,5.24246]
[1741948798486,5.24218,1907.6,1907.5,0.06170424]
[1741948799413,13.7032758,1907.6,1907.5,0.06170424]
[1741948799979,8.4610958,1907.6,1907.1,0.05242824]
[1741948800182,7.6903958,1907.6,1907.3,5.243]
[1741948800484,4.6903958,1907.9,1907.8,5.24163]
[1741948800688,4.6903958,1907.9,1907.6,5.24207]
[1741948800982,5.5098958,1908.3,1907.4,7.407]
[1741948801214,5.24091,1908.1,1907.7,5.24186]
[1741948801484,9.9313058,1908.1,1907.8,0.524186]
[1741948801709,15.1723058,1908.1,1907.8,0.524186]
[1741948802011,5.24111,1908.0,1907.8,0.524186]
[1741948802215,5.24136,1907.9,1907.6,6.07078]
[1741948802404,5.24112,1908.0,1907.6,0.8288]
[1741948802605,5.24141,1907.9,1907.6,6.07097]
[1741948802983,5.24118,1908.0,1907.6,6.07097]
[1741948803184,5.24118,1908.0,1907.7,0.607097]
[1741948803706,10.48245,1908.0,1907.7,0.607097]
[1741948803916,5.24118,1908.0,1907.7,0.607097]
[1741948804125,5.2414,1907.9,1907.7,0.607097]
[1741948804301,5.24163,1907.8,1907.4,11.68489]
[1741948804624,5.24201,1907.7,1907.4,0.5243]
[1741948804830,5.5078958,1907.8,1907.2,0.7768]
[1741948805026,5.2426,1907.5,1907.2,0.7768]
[1741948805408,5.2422,1907.6,1907.3,0.05242419]
[1741948805608,5.2422,1907.6,1907.3,5.29534419]
[1741948805902,5.5078958,1907.8,1907.3,0.05242419]
[1741948806108,9.9320558,1907.8,1907.4,10.48514]
[1741948806310,12.06553,1908.0,1907.6,5.24193]
[1741948806701,5.24138,1907.9,1907.6,5.24193]
[1741948806902,5.24138,1907.9,1907.5,5.29481972]
[1741948807133,5.24138,1907.9,1907.5,10.53710972]
[1741948807427,12.06553,1908.0,1907.5,10.53710972]
[1741948807428,12.06553,1908.0,1907.6,6.29584097]
[1741948807657,5.24147,1907.9,1907.6,1.05371097]
[1741948808136,5.24229,1907.6,1907.4,0.47949488]
[1741948809133,9.9328558,1907.5,1907.4,0.47949488]
[1741948809635,6.02,1907.9,1907.2,0.7954]
[1741948809835,7.6903958,1907.8,1907.2,0.7954]
[1741948810011,5.24261,1907.5,1907.2,0.7954]
[1741948810333,5.99741,1907.7,1907.3,5.2428]
[1741948810503,5.99741,1907.7,1907.3,6.370945]
[1741948810915,5.24222,1907.6,1907.3,1.128145]
[1741948811110,5.24218,1907.6,1907.2,0.7954]
[1741948811435,5.24259,1907.5,1907.1,5.24347]
[1741948811844,5.24259,1907.5,1907.2,5.29565557]
[1741948812815,5.24259,1907.5,1907.1,5.24347]
[1741948813021,9.9329858,1907.5,1907.1,5.24347]
[1741948813220,9.9329858,1907.5,1907.2,0.524347]
[1741948813421,9.9329858,1907.5,1907.2,0.60870661]
[1741948813624,5.24289,1907.4,1907.2,0.08435961]
[1741948813824,9.02231,1907.3,1907.2,0.08435961]
[1741948814149,3.0,1907.3,1907.2,0.08435961]
[1741948814311,8.24301,1907.3,1907.0,0.48108396]
[1741948814505,5.24301,1907.3,1907.1,0.08459105]
[1741948815438,3.0,1907.4,1907.1,0.08459105]
[1741948815642,5.24313,1907.3,1907.1,0.08459105]
[1741948816011,5.24313,1907.3,1906.9,11.02144836]
[1741948816246,5.24313,1907.3,1907.2,0.08435961]
[1741948816714,5.24313,1907.3,1907.0,1.10214484]
[1741948816911,5.24313,1907.3,1907.1,0.08459105]
[1741948817446,9.9336758,1907.2,1907.1,0.08459105]
[1741948817834,9.9336758,1907.2,1906.9,0.48108396]
[1741948817835,5.24383,1907.0,1906.9,0.48108396]
[1741948818418,5.24374,1907.1,1906.7,5.29690003]
[1741948818617,4.6903958,1907.2,1906.8,5.77398]
[1741948818828,4.6903958,1907.2,1906.9,5.244]
[1741948819030,4.6903958,1907.2,1906.9,10.48794]
[1741948819354,4.6903958,1907.2,1906.9,5.24394]
[1741948819649,9.9336958,1907.2,1906.9,5.24394]
[1741948819844,9.9336958,1907.2,1906.9,1.101798]
[1741948820046,5.24369,1907.1,1906.8,0.52969]
[1741948820247,4.23645174,1907.1,1906.9,5.24404]
[1741948821352,4.23645174,1907.1,1906.8,11.01805]
[1741948821557,4.23645174,1907.1,1906.8,5.77382]
[1741948821720,4.23645174,1907.1,1906.8,11.07049815]
[1741948822052,4.23645174,1907.1,1906.9,1.10704982]
[1741948822247,4.23645174,1907.1,1906.9,6.40350554]
[1741948822452,3.0,1907.2,1907.0,5.24375]
[1741948822687,5.01575174,1907.5,1907.3,5.24283]
[1741948822839,10.25830174,1907.5,1907.3,1.048611]
[1741948823354,15.50095174,1907.5,1907.3,1.048611]
[1741948823560,4.23645174,1907.5,1907.2,5.29560744]
[1741948824052,4.23645174,1907.7,1907.3,0.797]
[1741948824257,23.37071,1907.8,1907.4,5.2951516]
[1741948824422,3.0,1907.7,1907.4,5.2951516]
[1741948824626,3.0,1907.7,1907.5,0.52951516]
[1741948824824,8.24192,1907.7,1907.5,0.52951516]
[1741948825061,12.47837174,1907.7,1907.5,0.52951516]
[1741948825232,7.23645174,1907.7,1907.5,0.52951516]
[1741948825648,12.47845174,1907.7,1907.5,0.52951516]
[1741948825843,5.24275,1907.4,1907.2,0.48108396]
[1741948826656,9.47913174,1907.5,1907.2,0.48108396]
[1741948826857,14.72179174,1907.5,1907.2,0.48108396]
[1741948827231,9.47911174,1907.5,1907.1,6.10544914]
[1741948827430,9.47911174,1907.5,1907.2,0.61054491]
[1741948827630,9.47908174,1907.5,1907.2,0.61054491]
[1741948827842,5.24286,1907.4,1907.1,0.8095]
[1741948828243,10.48577,1907.4,1907.1,0.8095]
[1741948828443,10.48577,1907.4,1907.2,0.07742902]
[1741948828833,5.24286,1907.4,1907.2,0.07742902]
[1741948829031,10.48578,1907.4,1907.2,0.07742902]
[1741948829235,9.93455198,1907.3,1907.2,0.07742902]
[1741948829458,9.93455198,1907.3,1906.9,7.14892982]
[1741948829658,9.93455198,1907.3,1907.2,0.07716754]
[1741948829864,15.17775198,1907.3,1907.0,0.71489298]
[1741948830191,15.17775198,1907.3,1907.1,0.07737583]
[1741948830535,9.93455198,1907.3,1907.1,0.07737583]
[1741948830740,5.24301,1907.3,1907.1,0.07737583]
[1741948832152,9.93418198,1907.5,1907.2,5.24322]
[1741948832356,9.93418198,1907.5,1907.3,0.11416235]
[1741948832357,9.93403198,1907.5,1907.3,0.11416235]
[1741948832560,15.17671198,1907.5,1907.3,0.11416235]
[1741948833147,5.24273,1907.4,1907.3,0.11416235]
[1741948833846,10.48564,1907.4,1907.0,6.44143686]
[1741948834060,5.24273,1907.4,1907.3,0.11413014]
[1741948834255,5.24302,1907.3,1907.0,6.44143686]
[1741948834456,5.24302,1907.3,1907.1,0.64414369]
[1741948834653,5.24273,1907.4,1907.1,0.64414369]
[1741948835339,9.93403198,1907.5,1907.1,5.88757369]
[1741948835669,5.24285,1907.4,1907.1,5.88757369]
[1741948835871,5.24285,1907.4,1907.1,0.64414369]
[1741948836574,10.48575,1907.4,1907.1,0.64414369]
[1741948837089,10.4858,1907.4,1907.1,0.64414369]
[1741948837781,5.24312,1907.3,1907.1,0.64414369]
[1741948840580,5.24279,1907.4,1907.1,5.88762369]
[1741948840780,5.24279,1907.4,1907.2,0.58876237]
[1741948842486,5.24301,1907.3,1907.1,1.12688757]